bitfinex/quotes_BTCUSD_20220111
["timestamp","ask_amount","ask_price","bid_price","bid_amount"]
[1641875902871,0.36702924,42293.0,42290.0,0.00113892]
[1641875903275,0.41902924,42293.0,42290.0,0.00113892]
[1641875903475,0.41902924,42293.0,42291.0,0.2440912]
[1641875905118,0.36702924,42293.0,42291.0,0.2440912]
[1641875905318,0.051,42293.0,42291.0,0.2440912]
[1641875906617,0.03545707,42294.0,42291.0,0.2440912]
[1641875907222,0.601,42291.0,42290.0,0.00113934]
[1641875907672,0.601,42291.0,42290.0,0.58090911]
[1641875908769,0.601,42291.0,42290.0,0.58019315]
[1641875909372,0.617,42291.0,42290.0,0.58019315]
[1641875909771,0.617,42291.0,42289.0,0.58019315]
[1641875909772,0.599,42290.0,42289.0,0.58019315]
[1641875910473,0.599,42290.0,42288.0,0.58090908]
[1641875910976,0.599,42290.0,42288.0,0.00071593]
[1641875911175,0.599,42290.0,42287.0,0.58091014]
[1641875911429,0.657,42290.0,42287.0,0.58091014]
[1641875911923,0.657,42290.0,42287.0,0.00071699]
[1641875912323,0.657,42290.0,42287.0,0.58091014]
[1641875912524,0.599,42290.0,42287.0,0.58019315]
[1641875912724,0.599,42290.0,42289.0,0.00042052]
[1641875912925,0.599,42290.0,42289.0,0.58061367]
[1641875913325,0.653,42290.0,42289.0,0.58061367]
[1641875913528,0.653,42290.0,42289.0,0.00042052]
[1641875913825,1.023177,42290.0,42289.0,0.00042052]
[1641875914525,0.969177,42290.0,42289.0,0.00042052]
[1641875915366,1.025177,42290.0,42289.0,0.00042052]
[1641875916566,0.969177,42290.0,42289.0,0.00042052]
[1641875917369,0.655,42290.0,42289.0,0.00042052]
[1641875917569,0.655,42290.0,42288.0,0.58101993]
[1641875918468,0.599,42290.0,42288.0,0.00082678]
[1641875919328,0.657,42290.0,42288.0,0.58101993]
[1641875920527,0.599,42290.0,42288.0,0.58101993]
[1641875921129,0.849,42290.0,42288.0,0.58101993]
[1641875921333,0.901,42290.0,42288.0,0.58101993]
[1641875922030,0.00712372,42289.0,42288.0,0.58101993]
[1641875922871,0.00712372,42289.0,42288.0,0.32570418]
[1641875923271,0.06812372,42289.0,42288.0,0.32570418]
[1641875923471,0.06812372,42289.0,42288.0,0.91660498]
[1641875924570,0.00712372,42289.0,42288.0,0.91660498]
[1641875925373,0.07112372,42289.0,42288.0,0.32570418]
[1641875925773,0.07112372,42289.0,42288.0,0.64710232]
[1641875926174,0.07112372,42289.0,42288.0,0.00082678]
[1641875926626,0.00712372,42289.0,42288.0,0.00082678]
[1641875927422,0.06712372,42289.0,42288.0,0.00082678]
[1641875927822,0.06712372,42289.0,42288.0,0.31412148]
[1641875928323,0.06712372,42289.0,42288.0,1.22555501]
[1641875928523,0.00712372,42289.0,42288.0,1.22555501]
[1641875928723,0.00712372,42289.0,42288.0,0.67860827]
[1641875928925,0.00712372,42289.0,42288.0,0.00082678]
[1641875929326,0.06712372,42289.0,42288.0,0.00082678]
[1641875929724,0.06712372,42289.0,42288.0,1.22556364]
[1641875930176,0.06712372,42289.0,42288.0,0.67860827]
[1641875930577,0.00712372,42289.0,42288.0,1.22556364]
[1641875931381,0.06712372,42289.0,42288.0,1.22556364]
[1641875931580,0.06712372,42289.0,42288.0,0.67860827]
[1641875931778,0.06712372,42289.0,42288.0,0.00082678]
[1641875932577,0.00712372,42289.0,42288.0,0.00082678]
[1641875933481,0.06412372,42289.0,42288.0,0.00082678]
[1641875933780,0.06412372,42289.0,42288.0,0.5914797]
[1641875934222,0.06412372,42289.0,42288.0,0.00082678]
[1641875934626,0.00712372,42289.0,42288.0,0.00082678]
[1641875934823,0.00712372,42289.0,42288.0,0.59143607]
[1641875935322,0.06412372,42289.0,42288.0,0.59143607]
[1641875936723,0.00712372,42289.0,42288.0,0.00082678]
[1641875937329,0.06812372,42289.0,42288.0,0.00082678]
[1641875938572,0.00712372,42289.0,42288.0,0.00082678]
[1641875939372,1.28612372,42289.0,42288.0,0.00082678]
[1641875939776,1.33342372,42289.0,42288.0,0.00082678]
[1641875939973,1.70360072,42289.0,42288.0,0.00082678]
[1641875940572,1.67960072,42289.0,42288.0,0.00082678]
[1641875941074,0.42460072,42289.0,42288.0,0.00082678]
[1641875941522,0.43560072,42289.0,42288.0,0.00082678]
[1641875942827,0.06542372,42289.0,42288.0,0.00082678]
[1641875943323,0.02012372,42289.0,42288.0,0.00082678]
[1641875944926,0.00712372,42289.0,42288.0,0.00082678]
[1641875945370,0.02112372,42289.0,42288.0,0.00082678]
[1641875946571,0.00712372,42289.0,42288.0,0.00082678]
[1641875947371,0.01812372,42289.0,42288.0,0.00082678]
[1641875948773,0.00712372,42289.0,42288.0,0.00082678]
[1641875949423,0.03312372,42289.0,42288.0,0.00082678]
[1641875950627,0.00712372,42289.0,42288.0,0.00082678]
[1641875951427,0.06812372,42289.0,42288.0,0.00082678]
[1641875952028,0.43830072,42289.0,42288.0,0.00082678]
[1641875952226,0.48560072,42289.0,42288.0,0.00082678]
[1641875952675,0.42460072,42289.0,42288.0,0.00082678]
[1641875953475,0.48460072,42289.0,42288.0,0.00082678]
[1641875953679,0.43730072,42289.0,42288.0,0.00082678]
[1641875954675,0.37730072,42289.0,42288.0,0.00082678]
[1641875955481,0.43830072,42289.0,42288.0,0.00082678]
[1641875956728,1.69330072,42289.0,42288.0,0.00082678]
[1641875956927,1.74060072,42289.0,42288.0,0.00082678]
[1641875957325,0.50460072,42289.0,42288.0,0.00082678]
[1641875958927,0.42460072,42289.0,42288.0,0.00082678]
[1641875959526,0.44360072,42289.0,42288.0,0.00082678]
[1641875960383,1.69860072,42289.0,42288.0,0.00082678]
[1641875960785,1.67960072,42289.0,42288.0,0.00082678]
[1641875961188,0.42460072,42289.0,42288.0,0.00082678]
[1641875961386,0.44260072,42289.0,42288.0,0.00082678]
[1641875961593,1.69760072,42289.0,42288.0,0.00082678]
[1641875961888,0.44260072,42289.0,42288.0,0.00082678]
[1641875962094,0.74459724,42289.0,42288.0,0.00082678]
[1641875962288,1.69760072,42289.0,42288.0,0.00082678]
[1641875962689,1.67960072,42289.0,42288.0,0.00082678]
[1641875963489,0.43560072,42289.0,42288.0,0.00082678]
[1641875964826,0.42460072,42289.0,42288.0,0.00082678]
[1641875965428,0.43560072,42289.0,42288.0,0.00082678]
[1641875966729,0.42460072,42289.0,42288.0,0.00082678]
[1641875967428,0.44160072,42289.0,42288.0,0.00082678]
[1641875967880,0.39430072,42289.0,42288.0,0.00082678]
[1641875968680,0.37730072,42289.0,42288.0,0.00082678]
[1641875969482,0.39430072,42289.0,42288.0,0.00082678]
[1641875970683,0.37730072,42289.0,42288.0,0.00082678]
[1641875971430,0.39630072,42289.0,42288.0,0.00082678]
[1641875972026,0.39630072,42289.0,42285.0,0.41654384]
[1641875972224,1.69860072,42289.0,42285.0,0.41654384]
[1641875972423,1.69860072,42289.0,42286.0,0.00071706]
[1641875972623,1.69860072,42289.0,42288.0,0.0007127]
[1641875972824,1.67960072,42289.0,42288.0,0.0007127]
[1641875973528,1.69060072,42289.0,42288.0,0.0007127]
[1641875974726,1.67960072,42289.0,42288.0,0.0007127]
[1641875975478,1.69060072,42289.0,42288.0,0.0007127]
[1641875976979,1.67960072,42289.0,42288.0,0.0007127]
[1641875977377,1.69060072,42289.0,42288.0,0.0007127]
[1641875977577,1.69084691,42289.0,42288.0,0.00045822]
[1641875978780,1.67984691,42289.0,42288.0,0.00045822]
[1641875979428,1.69084691,42289.0,42288.0,0.00045822]
[1641875980530,1.69084691,42289.0,42281.0,0.004]
[1641875980531,2.19616505,42289.0,42281.0,0.004]
[1641875980735,0.05916071,42282.0,42278.0,0.59076945]
[1641875980933,0.24117085,42280.0,42278.0,0.59076945]
[1641875981136,1.66480928,42279.0,42278.0,0.59076945]
[1641875981334,2.02456725,42279.0,42278.0,0.59076945]
[1641875981533,2.39474425,42279.0,42270.0,0.54134833]
[1641875981731,0.4744512,42271.0,42270.0,0.2816]
[1641875981932,0.79492236,42271.0,42270.0,0.2816]
[1641875982133,0.32047116,42271.0,42264.0,0.5481]
[1641875982433,0.00712628,42271.0,42270.0,0.59409792]
[1641875982678,0.00712628,42271.0,42270.0,0.87583002]
[1641875982879,0.00712628,42271.0,42270.0,0.59409792]
[1641875983078,0.39964796,42271.0,42270.0,0.59409792]
[1641875983381,0.80550758,42271.0,42268.0,0.59409792]
[1641875983581,1.255,42270.0,42268.0,0.59409792]
[1641875983884,0.0473,42269.0,42268.0,0.59409792]
[1641875984082,1.3023,42269.0,42268.0,0.59409792]
[1641875984282,1.62045204,42269.0,42266.0,0.59409792]
[1641875984480,1.62045204,42269.0,42267.0,0.00085322]
[1641875984680,0.36545204,42269.0,42267.0,0.00085322]
[1641875985181,1.62045204,42269.0,42267.0,0.00085322]
[1641875985381,0.36545204,42269.0,42267.0,0.00085322]
[1641875985580,0.37545204,42269.0,42267.0,0.00085322]
[1641875985780,0.37545204,42269.0,42266.0,0.00078651]
[1641875986625,1.97253683,42269.0,42266.0,0.00078651]
[1641875986824,1.97253683,42269.0,42265.0,0.42078652]
[1641875986825,1.62045204,42269.0,42265.0,0.42078652]
[1641875987526,1.62545204,42269.0,42265.0,0.42078652]
[1641875987726,1.62569825,42269.0,42268.0,0.00039994]
[1641875987926,1.99587525,42269.0,42268.0,0.00039994]
[1641875988729,2.01846901,42269.0,42268.0,0.00039994]
[1641875989230,2.01975252,42269.0,42268.0,0.00039994]
[1641875989529,2.03567873,42269.0,42268.0,0.00039994]
[1641875990777,2.02567873,42269.0,42268.0,0.00039994]
[1641875991580,2.03667873,42269.0,42268.0,0.00039994]
[1641875991978,2.08667873,42269.0,42268.0,0.00039994]
[1641875992678,2.08667873,42269.0,42266.0,0.00111684]
[1641875992679,2.07567873,42269.0,42266.0,0.00111684]
[1641875992879,1.684357,42267.0,42266.0,0.00112467]
[1641875993079,1.731657,42267.0,42266.0,0.00112467]
[1641875993479,1.742657,42267.0,42266.0,0.00112467]
[1641875993680,1.683477,42267.0,42266.0,0.00112467]
[1641875994128,1.683477,42267.0,42266.0,0.00039994]
[1641875994824,1.672477,42267.0,42266.0,0.00039994]
[1641875995425,1.682477,42267.0,42266.0,0.00039994]
[1641875996026,0.427477,42267.0,42266.0,0.3254669]
[1641875996227,0.0573,42267.0,42266.0,0.00039994]
[1641875996826,0.0473,42267.0,42265.0,0.41539994]
[1641875997426,0.0643,42267.0,42265.0,0.41539994]
[1641875997676,0.06454642,42267.0,42266.0,0.35038782]
[1641875998878,0.04754642,42267.0,42266.0,0.00038782]
[1641875999080,0.04754642,42267.0,42266.0,0.34682916]
[1641875999281,0.00024642,42267.0,42266.0,0.71700616]
[1641875999481,0.01824642,42267.0,42266.0,0.37056482]
[1641876000582,0.0012246,42282.0,42266.0,0.72950806]
[1641876000783,1.27964,42283.0,42268.0,0.159143]
[1641876000784,0.02464,42283.0,42268.0,0.159143]
[1641876000982,0.02464,42283.0,42280.0,0.00129814]
[1641876001529,0.02464,42283.0,42280.0,0.44071094]
[1641876002129,0.02464,42283.0,42281.0,0.35243678]
[1641876002330,0.02464,42283.0,42281.0,0.63719038]
[1641876002729,0.02464,42283.0,42282.0,0.00033376]
[1641876003131,0.02464,42283.0,42282.0,0.35545666]
[1641876003330,0.02464,42283.0,42282.0,0.72563366]
[1641876003632,0.02464,42283.0,42282.0,0.73863366]
[1641876003832,0.00050348,42288.0,42282.0,0.73863366]
[1641876004033,0.00050348,42288.0,42282.0,0.36845666]
[1641876004831,0.00050427,42288.0,42282.0,0.35617288]
[1641876005677,0.00050427,42288.0,42282.0,0.45111288]
[1641876006379,0.84888696,42290.0,42282.0,0.45111288]
[1641876006877,0.84888696,42290.0,42285.0,0.1]
[1641876007080,0.84888696,42290.0,42288.0,0.00124566]
[1641876007278,0.84888696,42290.0,42289.0,0.00123027]
[1641876007678,0.84888696,42290.0,42289.0,0.37140727]
[1641876007879,0.84888696,42290.0,42289.0,0.41870727]
[1641876008077,0.84888696,42290.0,42289.0,0.91870727]
[1641876008078,0.21648696,42290.0,42289.0,0.91870727]
[1641876008279,0.37179917,42291.0,42290.0,0.720177]
[1641876008479,0.00030165,42292.0,42290.0,0.51876362]
[1641876008679,0.00030165,42292.0,42291.0,0.370177]
[1641876008938,0.00030165,42292.0,42291.0,0.41871044]
[1641876009130,0.00030165,42292.0,42291.0,0.77785349]
[1641876009331,0.00030165,42292.0,42291.0,0.87785349]
[1641876009530,0.00030165,42292.0,42291.0,0.89585349]
[1641876009732,0.00030165,42294.0,42291.0,0.89585349]
[1641876009929,0.00030165,42294.0,42293.0,0.00123667]
[1641876010131,0.00030165,42294.0,42293.0,0.41871367]
[1641876010331,0.00030165,42294.0,42293.0,0.91760527]
[1641876010929,0.00045248,42296.0,42293.0,1.01760527]
[1641876011132,0.00045248,42296.0,42295.0,0.37145196]
[1641876011332,0.00045248,42296.0,42295.0,0.65355345]
[1641876012130,0.00050567,42298.0,42295.0,0.02868496]
[1641876012334,0.00050567,42298.0,42296.0,0.370177]
[1641876012780,0.00050567,42298.0,42295.0,0.00192487]
[1641876012781,0.00050567,42298.0,42295.0,0.00064991]
[1641876013178,0.64618766,42297.0,42295.0,0.00064991]
[1641876013581,0.370177,42297.0,42295.0,0.00064991]
[1641876013782,0.00050568,42299.0,42295.0,0.00064991]
[1641876014181,0.00050568,42299.0,42297.0,0.00129695]
[1641876014380,0.00050568,42299.0,42298.0,0.370177]
[1641876014985,0.00050568,42299.0,42297.0,0.00129695]
[1641876015582,0.00050568,42299.0,42297.0,0.00929695]
[1641876015782,0.00050777,42300.0,42297.0,0.00929695]
[1641876016635,0.00050777,42300.0,42298.0,0.370177]
[1641876016833,0.00050777,42300.0,42299.0,0.33508786]
[1641876017033,0.00050778,42301.0,42299.0,0.70526486]
[1641876017234,0.00050778,42301.0,42300.0,0.370177]
[1641876017434,0.37720057,42301.0,42297.0,0.00129695]
[1641876017635,0.37720057,42301.0,42299.0,0.00633118]
[1641876017833,0.00050778,42301.0,42299.0,0.00633118]
[1641876018335,0.00050778,42301.0,42300.0,0.370177]
[1641876018933,0.00050778,42301.0,42299.0,0.00033118]
[1641876019335,0.00049801,42303.0,42299.0,0.00033118]
[1641876019534,0.00049801,42303.0,42299.0,0.00933118]
[1641876020778,0.00049801,42303.0,42299.0,0.00033118]
[1641876021482,0.00049801,42303.0,42299.0,0.01733118]
[1641876022580,0.00049801,42303.0,42301.0,0.00031294]
[1641876022981,0.00050189,42303.0,42301.0,0.00031294]
[1641876023581,0.00050189,42303.0,42301.0,0.01131294]
[1641876024028,0.0005019,42304.0,42302.0,0.25533344]
[1641876025231,0.0005019,42305.0,42302.0,0.25533344]
[1641876025628,0.0005019,42305.0,42302.0,0.01]
[1641876026429,0.00050073,42306.0,42302.0,0.01]
[1641876026629,0.00050073,42306.0,42302.0,0.29842368]
[1641876026831,0.00050073,42306.0,42302.0,0.28842368]
[1641876027532,0.00050073,42306.0,42304.0,0.00033254]
[1641876028686,0.00050073,42306.0,42304.0,0.29905752]
[1641876028882,0.00050074,42307.0,42304.0,0.00033254]
[1641876029384,0.370177,42306.0,42304.0,0.00033254]
[1641876029583,0.370177,42306.0,42304.0,0.00733254]
[1641876030185,0.60579524,42306.0,42304.0,0.00733254]
[1641876030786,0.60579524,42306.0,42304.0,0.00033254]
[1641876032431,0.23561824,42306.0,42304.0,0.00033254]
[1641876032631,0.23561824,42306.0,42305.0,0.00031816]
[1641876034435,0.60579524,42306.0,42305.0,0.00031816]
[1641876034832,0.00050097,42308.0,42305.0,0.00031816]
[1641876034833,0.00100194,42308.0,42305.0,0.00031816]
[1641876035035,0.04780097,42308.0,42305.0,0.00031816]
[1641876035882,0.32505077,42306.0,42305.0,0.00031816]
[1641876036081,0.32505077,42306.0,42303.0,0.00033237]
[1641876036082,1.255,42305.0,42303.0,0.00033237]
[1641876036282,0.417477,42304.0,42303.0,0.00033237]
[1641876036480,1.672477,42304.0,42303.0,0.00033237]
[1641876036680,1.970977,42304.0,42303.0,0.00033237]
[1641876037083,2.07690321,42304.0,42303.0,0.00033237]
[1641876037283,2.61945867,42304.0,42303.0,0.00033237]
[1641876037482,2.56945867,42304.0,42303.0,0.00033237]
[1641876037679,0.32363807,42288.0,42284.0,0.07105889]
[1641876037881,0.05442348,42287.0,42284.0,0.00031266]
[1641876038081,0.05442348,42287.0,42285.0,0.28970588]
[1641876039134,0.05442348,42287.0,42284.0,0.00031266]
[1641876039533,0.39892904,42287.0,42284.0,0.00031266]
[1641876039734,0.05442348,42287.0,42284.0,0.06031266]
[1641876039935,0.370177,42286.0,42284.0,0.06031266]
[1641876040134,0.6386,42285.0,42284.0,0.06031266]
[1641876040333,1.03737833,42285.0,42284.0,0.06031266]
[1641876040935,1.36198732,42285.0,42284.0,0.00031266]
[1641876041734,1.37498732,42285.0,42284.0,0.00031266]
[1641876042783,1.37498732,42285.0,42282.0,0.00103251]
[1641876042982,0.99181032,42285.0,42282.0,0.00103251]
[1641876043182,0.370177,42284.0,42282.0,0.00103251]
[1641876043382,0.0473,42283.0,42282.0,0.00103251]
[1641876043585,0.417477,42283.0,42282.0,0.00103251]
[1641876043787,0.0473,42283.0,42282.0,0.00103251]
[1641876044684,0.0473,42283.0,42282.0,0.00031608]
[1641876045586,0.0663,42283.0,42282.0,0.00131608]
[1641876047635,0.07650868,42283.0,42282.0,0.00631608]
[1641876048835,0.05750868,42283.0,42282.0,0.00531608]
[1641876049039,0.04750868,42283.0,42282.0,0.00031608]
[1641876049236,0.04625368,42283.0,42282.0,0.00031608]
[1641876051082,0.04625368,42283.0,42282.0,0.31598869]
[1641876051687,0.04625368,42283.0,42282.0,0.02331608]
[1641876052985,0.04625368,42283.0,42282.0,0.00031608]
[1641876053586,0.04625368,42283.0,42282.0,0.01331608]
[1641876054828,0.04625368,42283.0,42282.0,0.00031608]
[1641876055631,0.04825368,42283.0,42282.0,0.01131608]
[1641876057035,0.04625368,42283.0,42282.0,0.00031608]
[1641876057687,0.04625368,42283.0,42282.0,0.011]
[1641876057688,0.05425368,42283.0,42282.0,0.011]
[1641876057888,0.90332543,42283.0,42282.0,0.011]
[1641876058891,0.89532543,42283.0,42280.0,0.00104592]
[1641876059090,0.27904916,42281.0,42280.0,0.00104592]
[1641876060193,0.27904916,42281.0,42280.0,0.00032947]
[1641876061538,0.0473,42281.0,42280.0,0.00032947]
[1641876061838,0.0583,42281.0,42280.0,0.00532947]
[1641876062640,0.0583,42281.0,42280.0,0.00560884]
[1641876062839,0.0583,42281.0,42280.0,0.00060884]
[1641876063139,0.0473,42281.0,42280.0,0.00060884]
[1641876063742,0.0573,42281.0,42280.0,0.00960884]
[1641876064842,0.0473,42281.0,42280.0,0.00060884]
[1641876065783,0.0503,42281.0,42280.0,0.02160884]
[1641876066383,0.44128693,42281.0,42280.0,0.02160884]
[1641876066984,0.43828693,42281.0,42280.0,0.00060884]
[1641876067187,0.0473,42281.0,42280.0,0.00060884]
[1641876067686,0.0733,42281.0,42280.0,0.00632947]
[1641876068932,0.0473,42281.0,42280.0,0.00032947]
[1641876071835,0.0473,42281.0,42280.0,0.00932947]
[1641876071836,0.0573,42281.0,42280.0,0.00932947]
[1641876073088,0.0473,42281.0,42280.0,0.00032947]
[1641876073690,0.0563,42281.0,42280.0,0.00832947]
[1641876075095,0.0473,42281.0,42280.0,0.00032947]
[1641876075696,0.0543,42281.0,42280.0,0.01732947]
[1641876076931,0.0473,42281.0,42280.0,0.00032947]
[1641876077535,0.0473,42281.0,42279.0,0.00057249]
[1641876077731,0.0513,42281.0,42280.0,0.02]
[1641876077933,0.0513,42281.0,42280.0,0.39145697]
[1641876078135,0.0513,42281.0,42280.0,0.84719271]
[1641876078136,0.004,42281.0,42280.0,0.84719271]
[1641876078333,0.009488,42284.0,42281.0,0.4091295]
[1641876078534,0.009488,42284.0,42282.0,0.547528]
[1641876078733,0.009488,42284.0,42283.0,0.370177]
[1641876079135,0.009488,42284.0,42283.0,0.470177]
[1641876079333,0.009488,42284.0,42283.0,0.91898356]
[1641876079534,0.009487,42287.0,42283.0,1.3247193]
[1641876079736,0.009487,42287.0,42286.0,0.87144512]
[1641876079932,0.009487,42287.0,42286.0,0.37144512]
[1641876080189,0.009487,42287.0,42286.0,0.88662343]
[1641876080385,0.009487,42287.0,42286.0,1.95286056]
[1641876080588,0.00223833,42287.0,42286.0,2.01197156]
[1641876081686,0.00223833,42287.0,42286.0,2.03597156]
[1641876081886,0.00223833,42287.0,42286.0,1.34719367]
[1641876082791,0.00223833,42287.0,42286.0,1.3477661]
[1641876082988,0.00223833,42287.0,42286.0,1.3237661]
[1641876083688,0.00223833,42287.0,42286.0,1.4463261]
[1641876084339,0.0005009,42290.0,42286.0,1.4463261]
[1641876084540,0.0005009,42290.0,42287.0,0.059114]
[1641876084840,0.0005009,42290.0,42289.0,0.30668971]
[1641876085041,0.0005009,42290.0,42289.0,1.04104143]
[1641876085444,0.00050093,42291.0,42289.0,1.04104143]
[1641876085640,0.00050093,42291.0,42290.0,0.73646623]
[1641876085842,0.00050093,42291.0,42290.0,0.79678467]
[1641876086043,0.00050093,42291.0,42290.0,0.89678467]
[1641876086641,0.35587872,42297.0,42290.0,0.89678467]
[1641876086642,0.00050094,42293.0,42290.0,0.89678467]
[1641876086842,0.00050094,42293.0,42291.0,0.05911]
[1641876087045,0.00050094,42293.0,42292.0,0.73111303]
[1641876087786,0.00050095,42295.0,42292.0,0.74611303]
[1641876089087,0.00050096,42296.0,42292.0,0.74611303]
[1641876089688,0.00050096,42296.0,42292.0,0.74411303]
[1641876091093,0.00050096,42296.0,42292.0,0.73111303]
[1641876091552,0.00050094,42296.0,42292.0,0.73111303]
[1641876091750,0.00050094,42296.0,42292.0,0.74411303]
[1641876092552,0.00050094,42296.0,42292.0,0.80322003]
[1641876092849,0.00050094,42296.0,42294.0,0.00056944]
[1641876093049,0.00050094,42296.0,42295.0,0.370177]
[1641876093951,0.00712117,42297.0,42295.0,0.377177]
[1641876094155,0.00712117,42297.0,42296.0,1.0167777]
[1641876094353,0.00050095,42298.0,42297.0,0.0012914]
[1641876094552,0.00050095,42298.0,42297.0,0.74591744]
[1641876094954,0.00050095,42298.0,42297.0,0.74571744]
[1641876095192,0.00998397,42300.0,42297.0,0.74571744]
[1641876095796,0.00998397,42300.0,42297.0,0.75771744]
[1641876096294,0.009483,42300.0,42297.0,0.75771744]
[1641876096894,0.009483,42300.0,42297.0,0.0130914]
[1641876097094,0.009483,42300.0,42297.0,0.0010914]
[1641876097494,0.009483,42300.0,42296.0,0.02403]
[1641876097695,0.009483,42300.0,42299.0,0.00029027]
[1641876097894,0.24453055,42300.0,42299.0,0.00029027]
[1641876099836,0.24453055,42300.0,42299.0,0.01029027]
[1641876100336,0.62828944,42300.0,42299.0,0.01029027]
[1641876101139,0.62828944,42300.0,42299.0,0.00029027]
[1641876101738,0.62828944,42300.0,42299.0,0.00529027]
[1641876103288,0.62828944,42300.0,42299.0,0.00029027]
[1641876103491,0.00050096,42302.0,42299.0,0.00029027]
[1641876103889,0.00050096,42302.0,42299.0,0.00729027]
[1641876104591,0.37769134,42300.0,42299.0,0.00729027]
[1641876105092,0.00998497,42303.0,42299.0,0.00029027]
[1641876105890,0.00998497,42303.0,42299.0,0.00729027]
[1641876106292,0.45871322,42301.0,42299.0,0.00729027]
[1641876106934,0.00998497,42303.0,42299.0,0.00729027]
[1641876107138,0.00050096,42302.0,42299.0,0.00029027]
[1641876107534,0.00050096,42302.0,42300.0,0.00027625]
[1641876108336,0.01946897,42303.0,42300.0,0.00027625]
[1641876109535,0.018968,42303.0,42300.0,0.00027625]
[1641876109736,0.018968,42303.0,42300.0,0.00127625]
[1641876110988,0.018968,42303.0,42300.0,0.00027625]
[1641876111424,0.018968,42303.0,42302.0,0.27183663]
[1641876111589,0.018968,42303.0,42300.0,0.00027625]
[1641876111789,0.018968,42303.0,42300.0,0.00227625]
[1641876111989,0.370177,42302.0,42300.0,0.00227625]
[1641876112190,0.44640775,42301.0,42300.0,0.00227625]
[1641876112390,0.81658475,42301.0,42300.0,0.00227625]
[1641876112791,0.81658475,42301.0,42300.0,0.002]
[1641876112992,0.370177,42301.0,42299.0,0.00028047]
[1641876113193,0.02658929,42303.0,42299.0,0.00028047]
[1641876113591,0.370177,42302.0,42299.0,0.00028047]
[1641876113792,0.02658929,42303.0,42299.0,0.00628047]
[1641876114241,0.44019176,42302.0,42299.0,0.00628047]
[1641876115438,0.44967676,42302.0,42299.0,0.00628047]
[1641876115639,0.009485,42302.0,42299.0,0.00028047]
[1641876115838,0.009485,42302.0,42299.0,0.00728047]
[1641876116739,0.43584423,42302.0,42299.0,0.00728047]
[1641876117141,0.009485,42302.0,42299.0,0.00028047]
[1641876117541,0.009485,42302.0,42301.0,0.00028997]
[1641876122643,0.009485,42302.0,42300.0,0.00027658]
[1641876124645,0.009485,42302.0,42300.0,0.32678077]
[1641876124844,0.009485,42302.0,42300.0,0.31384717]
[1641876125486,0.01710429,42303.0,42300.0,0.31384717]
[1641876125889,0.01710429,42303.0,42300.0,0.01227658]
[1641876126090,0.01710429,42303.0,42300.0,0.32506898]
[1641876126491,0.009483,42303.0,42300.0,0.32506898]
[1641876127090,0.009483,42303.0,42301.0,0.370177]
[1641876127290,0.009483,42303.0,42302.0,0.31594121]
[1641876127490,0.009483,42303.0,42302.0,0.68640803]
[1641876127890,0.009483,42303.0,42302.0,0.69940803]
[1641876128090,0.009483,42303.0,42302.0,0.79940803]
[1641876128790,0.00050098,42305.0,42302.0,1.3917771]
[1641876129045,0.00050098,42305.0,42304.0,0.0012576]
[1641876129245,0.00050098,42305.0,42304.0,0.68647703]
[1641876129448,0.00050098,42305.0,42304.0,0.68521943]
[1641876129844,0.00050098,42305.0,42304.0,0.383177]
[1641876130046,0.00050099,42307.0,42304.0,0.383177]
[1641876131149,0.00050099,42308.0,42304.0,0.370177]
[1641876131348,0.00050099,42308.0,42302.0,0.10028982]
[1641876131546,0.00050099,42308.0,42303.0,0.370177]
[1641876131949,0.00050099,42308.0,42303.0,0.470177]
[1641876132546,0.00050099,42308.0,42306.0,0.00028921]
[1641876133589,0.000501,42309.0,42306.0,0.00028921]
[1641876133787,0.000501,42309.0,42306.0,0.01028921]
[1641876134688,0.000501,42309.0,42307.0,0.29708837]
[1641876134890,0.00150099,42310.0,42307.0,0.29708837]
[1641876135891,0.00150099,42310.0,42307.0,0.01]
[1641876136089,0.001,42310.0,42307.0,0.01]
[1641876137040,0.001,42310.0,42306.0,0.25094851]
[1641876137239,0.001,42310.0,42307.0,0.31623301]
[1641876137638,0.001,42310.0,42309.0,0.00028875]
[1641876140044,0.001,42310.0,42309.0,0.00728875]
[1641876140991,0.001,42310.0,42309.0,0.00028875]
[1641876141894,0.001,42310.0,42309.0,0.00528875]
[1641876143093,0.001,42310.0,42309.0,0.00028875]
[1641876143938,0.001,42310.0,42309.0,0.00628875]
[1641876145137,0.001,42310.0,42309.0,0.00028875]
[1641876145938,0.001,42310.0,42309.0,0.00728875]
[1641876147142,0.001,42310.0,42309.0,0.00028875]
[1641876147540,0.001,42310.0,42308.0,0.00056379]
[1641876147993,0.001,42310.0,42309.0,0.01]
[1641876149192,0.001,42310.0,42308.0,0.00056379]
[1641876149995,0.001,42310.0,42308.0,0.01156379]
[1641876151194,0.001,42310.0,42308.0,0.00056379]
[1641876151840,0.001,42310.0,42308.0,0.01056379]
[1641876152644,0.001,42310.0,42308.0,0.01040794]
[1641876153243,0.001,42310.0,42308.0,0.00040794]
[1641876153842,0.001,42310.0,42308.0,0.01040794]
[1641876154444,0.001,42310.0,42308.0,0.29675259]
[1641876155294,0.001,42310.0,42308.0,0.28675259]
[1641876155689,0.001,42310.0,42308.0,0.00040794]
[1641876155889,0.001,42310.0,42308.0,0.01040794]
[1641876157193,0.001,42310.0,42308.0,0.00040794]
[1641876157594,0.370177,42309.0,42307.0,0.00080426]
[1641876157797,0.0473,42308.0,42307.0,0.00080426]
[1641876157991,0.417477,42308.0,42307.0,0.00080426]
[1641876161947,0.430477,42308.0,42307.0,0.00080426]
[1641876162547,0.430477,42308.0,42307.0,0.00040794]
[1641876163192,0.417477,42308.0,42307.0,0.00040794]
[1641876163996,0.430477,42308.0,42307.0,0.00040794]
[1641876164997,1.03364753,42308.0,42307.0,0.00040794]
[1641876165196,1.02064753,42308.0,42307.0,0.00040794]
[1641876165600,0.417477,42308.0,42307.0,0.00040794]
[1641876165998,0.431477,42308.0,42307.0,0.00040794]
[1641876167152,0.417477,42308.0,42307.0,0.00040794]
[1641876167753,0.417477,42308.0,42306.0,0.0008055]
[1641876167954,0.430477,42308.0,42306.0,0.0008055]
[1641876169156,0.417477,42308.0,42306.0,0.0008055]
[1641876169958,0.0473,42308.0,42306.0,0.0008055]
[1641876172697,0.370177,42307.0,42306.0,0.0008055]
[1641876174644,0.0473,42308.0,42306.0,0.0008055]
[1641876175442,0.370177,42307.0,42306.0,0.0008055]
[1641876176047,0.0473,42308.0,42306.0,0.0008055]
[1641876177546,0.370177,42307.0,42306.0,0.0008055]
[1641876178390,0.0473,42308.0,42306.0,0.0008055]
[1641876178792,0.00050099,42309.0,42306.0,0.0008055]
[1641876179592,0.370177,42308.0,42306.0,0.0008055]
[1641876181950,0.013,42308.0,42306.0,0.0008055]